[Event "Cappelle op 36th"]
[Site "Cappelle la Grande"]
[Date "2020.02.26"]
[Round "7"]
[White "Enchev, Ivajlo"]
[Black "Mohammad, Nubairshah Shaikh"]
[Result "0-1"]
[ECO "D15"]
[WhiteElo "2496"]
[BlackElo "2415"]
[Annotator "Sagar Shah"]
[PlyCount "64"]
[EventDate "2020.02.22"]
[EventType "swiss"]
[EventRounds "9"]
[EventCountry "FRA"]
[SourceTitle "CBM 195 Extra"]
[Source "ChessBase"]
[SourceDate "2020.05.31"]
[SourceVersion "1"]
[SourceVersionDate "2020.05.31"]
[SourceQuality "1"]
[TimeControl "40/5400+30:1800+30"]

1. d4 {[%emt 0:00:00]} d5 {[%emt 0:00:00]} 2. c4 {[%emt 0:00:00]} c6 {[%emt 0:
00:00] Nubair has been a staunch follower of the Slav.} 3. Nc3 {[%emt 0:00:03]}
dxc4 $5 {[%emt 0:00:00]} 4. Nf3 {[%emt 0:00:36]} Nf6 {[%emt 0:00:30]} 5. e4 $5
{[%emt 0:00:47] The Geller Gambit is not considered as the best, but is surely
playable.} b5 {[%emt 0:00:01] Black rightly saves his pawn.} 6. Be2 {[%emt 0:
01:31]} (6. e5 Nd5 7. a4 {is how the biggest exponent of this lines- Salem
Saleh likes to play.}) 6... b4 {[%emt 0:00:40] This is the direct approach
where Black asks White to make a decision. He can either move his knight and
lose the e4 pawn or he can push forward with e5.} ({Pertinent:} 6... Bg4 7. O-O
e6 8. a4 b4 9. e5 bxc3 10. exf6 cxb2 11. fxg7 Bxg7 12. Bxb2 O-O 13. Ne5 Bf5 14.
Nxc4 c5 15. Bf3 Nd7 16. Bxa8 Qxa8 17. dxc5 Bxb2 18. Nxb2 Nxc5 19. Rc1 Rd8 20.
Qe2 Nb3 21. Rcd1 Nd4 22. Qe3 Qd5 23. h3 Bg6 24. Kh1 e5 25. f4 Rb8 26. Qxe5 Qxe5
27. fxe5 Nf5 28. Rf2 Ng3+ 29. Kh2 Ne4 30. Rc2 Ng5 31. Rcd2 Kg7 32. Nc4 Rb4 33.
Nd6 Rxa4 34. Ne8+ Kh6 35. Nf6 Ne6 36. Rf2 {Carlsen,M (2876)-Mamedov,R (2645)
chess24.com INT 2020 0-1 (88)}) 7. e5 {[%emt 0:01:14]} (7. Na4 Nxe4 8. Bxc4 {
is the main line.}) 7... bxc3 {[%emt 0:00:03]} 8. exf6 {[%emt 0:00:12]} cxb2 {
[%emt 0:00:07]} 9. fxg7 {[%emt 0:07:58]} (9. Bxb2 exf6 10. O-O Be6 11. Qa4 Be7
12. Bxc4 O-O {Black should be fine here with no issues, but this should have
been the best way to continue.}) 9... bxa1=Q {[%emt 0:02:35]} 10. gxh8=Q {
[%emt 0:00:25] Both sides have queens on the board. Whose queen is more
powerful? That's the question.'} Qa5+ $1 {[%emt 0:00:38] Black's queen joins
the action immediately. The only way in which Black can cause White trouble.'}
11. Nd2 $146 {[%emt 0:14:13]} (11. Kf1 Q5c3 $1 12. Bh6 Qxd1+ 13. Bxd1 Nd7 $19 {
Black has everything under control.}) (11. Bd2 Qxd1+ 12. Kxd1 (12. Bxd1 c3 $19)
12... c3 13. Be3 c2+ 14. Kxc2 Bf5+ $19) 11... c3 {[%emt 0:21:17]} 12. O-O {
[%emt 0:00:28] White makes the practical choice of giving up a piece, but
Black manages to hold on quite easily.} cxd2 {[%emt 0:01:54]} 13. Bxd2 {
[%emt 0:00:20]} Qxd1 {[%emt 0:00:05]} 14. Rxd1 {[%emt 0:00:04]} Qf5 {[%emt 0:
03:56]} 15. d5 {[%emt 0:03:38]} Qg6 $1 {[%emt 0:13:26]} (15... cxd5 16. Bh6 Nd7
17. Bb5 $18) 16. Bf3 {[%emt 0:21:53]} (16. dxc6 Nxc6 17. Bf3 Bg4 $19) 16...
cxd5 $2 {[%emt 0:06:33]} (16... Bg4 $1 17. Bxg4 Qxg4 18. Rc1 Qg7 19. Qxg7 Bxg7
20. dxc6 Na6 $19) 17. Bxd5 {[%emt 0:03:40]} Nc6 {[%emt 0:00:06]} 18. Be4 $5 {
[%emt 0:08:58] Quite an interesting move but Enchev fails to find an
equalizing opportunity.'} (18. Bh6 $3 {was a powerful strike here.} Qxh6 19.
Qxh7 $1 {This move is very powerful. Now the queen must stay in touch with c6
if Black wants to play for an advantage.} Bd7 (19... Qxh7 20. Bxc6+ Bd7 21.
Bxd7+ Kd8 22. Bf5+ $16) (19... Qf6 20. Qxf7+ Qxf7 21. Bxc6+ Bd7 22. Bxd7+ Kd8
23. Be6+ Ke8 24. Bd7+ $11) (19... Nd8 20. Qxh6 Bxh6 21. Bxa8 $13 {This
position is difficult to assess. Dynamically balanced maybe the right way.}) (
19... Ne5 20. Qxh6 Bxh6 21. Bxa8 $13) 20. Qxf7+ Kd8 21. Bxc6 Qxc6 22. Qxf8+ Kc7
23. Qf4+ Kb7 24. Qd2 $13) 18... Qe6 $6 {[%emt 0:06:27]} (18... Qxe4 $6 19. Bh6
$36 Nd4 20. Qxf8+ Kd7 21. Qxf7 Bb7 22. f3 $13) (18... Qd6 $1 19. Bf3 Bd7 $19)
19. Qxh7 {[%emt 0:08:55]} (19. Bc3 $1 {The idea is Bg7.} Bd7 {The only move.}
20. Bxc6 (20. Bg7 O-O-O 21. Bxc6 Bxc6 22. Rxd8+ Kxd8 23. Qxf8+ Kd7 $19 {
White king is checkmated.}) 20... Qxc6 (20... Bxc6 21. Bg7 $18) 21. Bg7 O-O-O
22. Bxf8 $13) 19... Bd7 {[%emt 0:03:08]} 20. h3 {[%emt 0:04:15]} Rc8 {[%emt 0:
01:08]} 21. Re1 {[%emt 0:06:01]} Qxa2 {[%emt 0:07:13]} 22. Bc3 {[%emt 0:03:27]}
Nd8 {[%emt 0:04:28]} 23. Qh8 {[%emt 0:03:52]} Qc4 {[%emt 0:02:35]} 24. Re3 {
[%emt 0:00:51]} Rc5 {[%emt 0:04:29] Now the king is safe on e8 and Black's
queen and rook create the attack around the white king.} 25. h4 {[%emt 0:02:17]
} Ne6 {[%emt 0:02:47]} 26. h5 {[%emt 0:01:05]} Bb5 {[%emt 0:03:21]} 27. Bd3 {
[%emt 0:02:47]} Qg4 {[%emt 0:00:05]} 28. Bxb5+ {[%emt 0:03:18]} Rxb5 {[%emt 0:
00:02]} 29. h6 {[%emt 0:01:02]} Rg5 {[%emt 0:07:48]} 30. g3 {[%emt 0:00:14]}
Rh5 {[%emt 0:00:19]} 31. Qh7 {[%emt 0:00:36]} Qd1+ {[%emt 0:01:22]} 32. Re1 {
[%emt 0:00:43]} Qf3 {[%emt 0:00:08]} 0-1

[Event "Gashimov Memorial-B 1st"]
[Site "Shamkir"]
[Date "2014.04.21"]
[Round "2"]
[White "Wojtaszek, Radoslaw"]
[Black "Eljanov, Pavel"]
[Result "0-1"]
[ECO "D15"]
[WhiteElo "2716"]
[BlackElo "2732"]
[Annotator "Sagar Shah"]
[PlyCount "117"]
[EventDate "2014.03.21"]
[EventType "tourn"]
[EventRounds "9"]
[EventCountry "AZE"]
[EventCategory "17"]
[SourceTitle "CBM 160"]
[Source "ChessBase"]
[SourceDate "2014.05.15"]
[SourceVersion "1"]
[SourceVersionDate "2014.05.15"]
[SourceQuality "1"]
[TimeControl "40/7200:20/3600:900+30"]
[WhiteClock "0:59:26"]
[BlackClock "0:56:56"]

1. d4 {[%emt 0:00:04]} d5 {[%emt 0:00:11]} 2. c4 {[%emt 0:00:05]} c6 {[%emt 0:
00:03]} 3. Nf3 {[%emt 0:00:08]} Nf6 {[%emt 0:00:04]} 4. Nc3 {[%emt 0:00:08]} a6
{[%emt 0:00:27]} 5. c5 {[%emt 0:00:07]} Bf5 {[%emt 0:01:04]} 6. Qb3 {[%emt 0:
00:15]} Ra7 {[%emt 0:11:40] This funny looking move is one of the points
behind playing a6. The rook, which is defending the b7 pawn, is out of the
game for the time being. But it's a sacrifice that the rook is ready to make,
so as to keep the black queen active.'} (6... Qc8 {is the other normal move in
this position.'} 7. Bf4 Nbd7 8. h3 e6 9. e3 Be7 10. Nh4 Be4 11. Be2 h6 12. Nf3
Bh7 13. O-O O-O 14. Na4 Bd8 15. Ne5 Bc7 16. Rac1 Rb8 17. Nb6 Qd8 18. Bxa6 Nxe5
19. dxe5 Ne4 20. Bd3 Nxc5 21. Bxh7+ Kxh7 22. Qc2+ Kg8 23. Nxd5 Qxd5 24. Qxc5
Qxa2 25. b4 Qd5 26. Qxd5 exd5 27. b5 Rfe8 28. bxc6 bxc6 29. Rxc6 Bxe5 30. Bxe5
Rxe5 31. Rd6 Kf8 32. Rd1 Rb5 33. Rd7 Ke8 34. Ra7 Rb8 35. Ra5 Rd8 36. Rd4 {
Nakamura,H (2760)-Kamsky,G (2762) Beijing 2012 1-0 (70)}) 7. Bf4 {[%emt 0:01:
34]} Nbd7 {[%emt 0:00:48]} 8. h3 {[%emt 0:00:15]} e6 {[%emt 0:01:20]} 9. e3 {
[%emt 0:05:53]} Be7 {[%emt 0:01:06]} 10. Be2 {[%emt 0:00:11]} O-O {[%emt 0:06:
11]} 11. O-O {[%emt 0:00:27] Black needs to exchange a few pieces in order to
breathe. So Ne4 is a logical move here, but before that Eljanov puts his rook
on e8 so that later he can break with e6-e5.'} Re8 {[%emt 0:09:20]} 12. Na4
$146 {[%emt 0:08:11]} (12. Rfc1 Bf8 13. Qa4 Ne4 14. b4 Ra8 15. Qd1 Nxc3 16.
Rxc3 Be4 17. Nd2 Bg6 18. Nb3 e5 19. Bg3 exd4 20. exd4 Nf6 21. Bf3 Ne4 22. Bxe4
Rxe4 23. Qd2 Qd7 24. f3 Re6 25. Re1 Rxe1+ 26. Qxe1 Be7 27. Re3 Bg5 28. f4 Bf6
29. Bh4 Bxh4 30. Qxh4 Be4 31. Qg4 f5 32. Qg5 Rf8 33. Qg3 Rf6 34. Qf2 Qf7 35.
Kh2 Qh5 36. Re2 Rg6 37. Qe3 Rh6 38. Na5 Qf7 39. Rf2 Qc7 40. Kg1 Rg6 41. Nb3 Qd8
{Jemai,A (2171)-Taeib,S (2070) Borj Cedria 2014 1-0}) 12... Ne4 {[%emt 0:03:26]
} 13. Rac1 {[%emt 0:02:43]} Bf6 {[%emt 0:12:42][%cal Ge6e5] e5 is on cards now.
'} 14. Nb6 {[%emt 0:11:29]} (14. Ne5 Bxe5 15. dxe5 Nd2 $17) 14... e5 $1 {
[%emt 0:18:05] Black seems to have successfully solved his opening problems.'}
15. Nxd7 $6 {[%emt 0:28:11]} (15. Bxe5 Nxe5 16. dxe5 Bxe5 17. Nxe5 Rxe5 18. Qd1
{and now Black has the strong move:} Bxh3 $1 19. gxh3 Qh4 $1 {and the attack
on the white king is really very strong.} 20. Bg4 Rg5 $40) 15... exf4 {[%emt 0:
00:05]} 16. Nxf6+ {[%emt 0:00:07]} Nxf6 {[%emt 0:00:16]} 17. Ne5 {[%emt 0:03:
06]} fxe3 {[%emt 0:00:57]} 18. Qxe3 {[%emt 0:09:02]} (18. fxe3 Bg6) 18... Nd7 {
[%emt 0:00:21]} 19. Qf4 {[%emt 0:02:47]} Nxe5 {[%emt 0:00:08]} 20. Qxf5 {
[%emt 0:07:52]} (20. dxe5 Bg6 {and Black doesn't even have an inkling of a
problem.}) 20... Ng6 {[%emt 0:00:32]} 21. Bh5 {[%emt 0:03:54]} Re4 {[%emt 0:10:
29] Black already has a good position. But now White has to decide whether he
would like to play Rcd1 and defend d4, which would give Black time to bring
his a7 rook into the game with b6; or, as in the game, he plays Rfe1,
sacrificing a pawn in order to play against the trapped rook on a7. Radoslaw
chose the latter. It was a very double-edged decision by him.'} 22. Rfe1 $5 {
[%emt 0:06:18]} (22. Rcd1 {was safer}) 22... Rxd4 {[%emt 0:00:58][%csl Ra7]
The question is can White take advantage of the Ra7 now?'} 23. Bxg6 {[%emt 0:
00:32]} hxg6 {[%emt 0:00:07]} 24. Qe5 {[%emt 0:00:07]} Ra4 {[%emt 0:14:14]} (
24... Rb4 $1) 25. Qe8+ {[%emt 0:02:33]} (25. Qd6 Qxd6 26. cxd6 Ra8 27. Re7 Rd8
28. Rxb7 Rxd6 {White should be able to hold this ending.}) 25... Qxe8 {[%emt 0:
00:04]} 26. Rxe8+ {[%emt 0:00:06] once again the rook on a7 has nowhere to go
but black plays well with his remaining pieces, while the rook always keeps
threatening to come back into the game.'} Kh7 {[%emt 0:00:02]} 27. a3 {[%emt 0:
00:12]} Rf4 {[%emt 0:08:08]} 28. g3 {[%emt 0:07:59]} Rf6 {[%emt 0:00:05]} 29.
a4 {[%emt 0:00:18]} a5 {[%emt 0:02:04]} 30. Rb8 $6 {[%emt 0:01:09] White gives
the opponent the open e-file.'} (30. Re7 {would have made quite some sense.} g5
31. Rce1 $1 Kg6 32. Rd7 {with the idea of doubling on the seventh rank would
give White excellent counterplay}) 30... Re6 {[%emt 0:01:32]} 31. h4 {[%emt 0:
00:47]} g5 $1 {[%emt 0:03:05] Eljanov plays really well in this endgame, even
though he is almost a rook down!'} 32. hxg5 {[%emt 0:00:04]} Kg6 {[%emt 0:00:
07]} 33. Kg2 {[%emt 0:03:28]} (33. f4 Re2 $15) 33... Re4 {[%emt 0:00:39]} 34.
b3 {[%emt 0:01:15]} Kxg5 {[%emt 0:00:21]} 35. Rc3 {[%emt 0:00:04]} f6 {[%emt 0:
02:07]} 36. Rf3 {[%emt 0:03:23]} Re7 {[%emt 0:03:20]} 37. Re3 {[%emt 0:01:00]}
Rd7 {[%emt 0:01:13]} 38. Kf3 {[%emt 0:02:04]} d4 {[%emt 0:00:19]} 39. Rd3 {
[%emt 0:00:22]} Rd5 {[%emt 0:01:10] Though Black is playing a rook less, we
must not forget the fact that White too must always keep his rook on b8 so
that the black rook remains passive. Doesn't that mean even the white rook is
doing nothing much?!'} 40. Rc8 {[%emt 0:00:00]} Rxc5 {[%emt 0:00:00]} 41. Rxd4
{[%emt 0:06:12]} b5 $1 {[%emt 0:04:37] Like a man rising from the dead, the a7
rook is back! And I feel Eljanov must have been so happy and Wojtaszek so
depressed that Black won the endgame without problems.'} 42. Kg2 {[%emt 0:11:
09]} b4 {[%emt 0:09:14]} 43. Rd6 {[%emt 0:01:15]} Kf5 {[%emt 0:03:00]} 44.
Rdxc6 {[%emt 0:10:20]} Rxc6 {[%emt 0:00:04]} 45. Rxc6 {[%emt 0:00:04]} Ke4 $15
{[%emt 0:00:04][%csl Rb3,Ge4,Rg2] Material equality has been established, but
the black king is now very active.'} 46. Rc4+ {[%emt 0:06:06]} Kd3 {[%emt 0:00:
05]} 47. f4 $6 {[%emt 0:00:12][%csl Re3,Rg3]} Re7 $36 {[%emt 0:20:38]} 48. Rc5
{[%emt 0:00:04]} Re3 {[%emt 0:10:20]} 49. Kh3 {[%emt 0:05:53]} Kd4 {[%emt 0:00:
05]} 50. Rxa5 {[%emt 0:00:04]} Re7 $1 {[%emt 0:00:08][%csl Rb3][%cal Gd4c3]
Wonderful controlled play by Eljanov. The black king can go to c3, but before
that Black defends his second rank and prevents counterplay'} 51. Rb5 {[%emt 0:
04:25]} Kc3 {[%emt 0:00:51]} 52. a5 {[%emt 0:00:04]} Ra7 {[%emt 0:02:24]} 53.
f5 {[%emt 0:00:57]} Kxb3 {[%emt 0:00:08]} 54. a6 {[%emt 0:00:05]} Rxa6 {
[%emt 0:00:09]} 55. Rb7 {[%emt 0:00:04]} Ka3 {[%emt 0:03:42]} 56. Rxg7 {
[%emt 0:00:29]} b3 {[%emt 0:00:03]} 57. Rb7 {[%emt 0:00:10]} b2 {[%emt 0:00:21]
} 58. g4 {[%emt 0:00:10]} Ra4 {[%emt 0:00:14]} 59. Z0 {A very nice game played
by both the players. Wojtaszek was quite ambitious and hence made the move
Rfe1 to play against Ra7. However Eljanov always kept things under control.
Once Eljanov played 41...b5! it secured him a clear edge because his a7 rook
started to breathe fresh air! The endgame technique of Pavel Eljanov was quite
exquisite!} (59. Rxb2 Kxb2 60. Kh4 Kc3 61. Kh5 Kd4 62. Kg6 Ke5 $19) 0-1